[Event "FRA-ch Teams Top 16-B 2022"]
[Site "Chartres"]
[Date "2022.06.14"]
[Round "6.10"]
[White "Eugene, Floryan"]
[Black "Hamitevici, Vladimir"]
[Result "1/2-1/2"]
[ECO "C00"]
[WhiteElo "2370"]
[BlackElo "2482"]
[Annotator "RC"]
[PlyCount "220"]
[EventDate "2022.06.09"]
[EventType "team-tourn"]
[EventCountry "FRA"]
[SourceTitle "playchess.com"]
[Source "ChessBase"]
[SourceQuality "1"]
[TimeControl "40/5400+30:1800+30"]

1. e4 {[%emt 0:00:05]} c5 {[%emt 0:00:31]} 2. Nf3 {[%emt 0:00:16]} e6 {[%emt 0:00:56]} 3. d3 {[%emt 0:08:20]} Nc6 {[%emt 0:03:23]} 4. g3 {[%emt 0:00:07]} d5 {[%emt 0:01:30]} 5. Qe2 {[%emt 0:00:56]} Nf6 {[%emt 0:01:22]} 6. Bg2 {[%emt 0:00:50]} Be7 {[%emt 0:00:19]} 7. O-O {[%emt 0:00:10]} O-O {[%emt 0:00:22]} 8. e5 {[%emt 0:00:16]} Nd7 {[%emt 0:00:08]} 9. c4 {[%emt 0:00:03]} Kh8 {[%emt 0:13:20]} 10. h4 {[%emt 0:13:17]} f6 {[%emt 0:02:32]} 11. exf6 {[%emt 0:05:13]} Bxf6 {[%emt 0:00:17]} 12. Nc3 {[%emt 0:02:06]} Nd4 {[%emt 0:01:35]} 13. Nxd4 {[%emt 0:06:23]} cxd4 {[%emt 0:00:47]} 14. Nb5 {[%emt 0:00:24]} dxc4 {[%emt 0:02:58]} 15. dxc4 {[%emt 0:03:36]} Qb6 {[%emt 0:05:38]} 16. Rb1 {[%emt 0:10:30]} a6 {[%emt 0:04:21]} 17. Na3 {[%emt 0:00:09]} a5 {[%emt 0:04:00]} 18. Nb5 {[%emt 0:06:46]} e5 {[%emt 0:06:46]} 19. b3 {[%emt 0:03:33]} Re8 {[%emt 0:13:15]} 20. Ba3 {[%emt 0:06:59]} Be7 {[%emt 0:01:21]} 21. Bxe7 {[%emt 0:00:12]} Rxe7 {[%emt 0:00:06]} 22. Rbd1 {[%emt 0:00:08]} Rf7 {[%emt 0:05:21]} 23. Qe4 {[%emt 0:05:08]} Rf8 {[%emt 0:08:19]} 24. f4 {[%emt 0:03:21]} d3+ {[%emt 0:02:47]} 25. Kh1 {[%emt 0:00:16]} Nc5 {[%emt 0:03:07]} 26. Qxe5 {[%emt 0:08:56]} Bg4 {[%emt 0:00:51]} 27. Nc7 {[%emt 0:00:23]} Rad8 {[%emt 0:08:50]} 28. Nd5 {[%emt 0:00:47]} Qh6 {[%emt 0:00:50]} 29. Rd2 {[%emt 0:04:30]} Be2 {[%emt 0:02:51]} 30. Rxe2 {[%emt 0:00:48]} dxe2 {[%emt 0:00:04]} 31. Qxe2 {[%emt 0:00:04]} Rde8 {[%emt 0:00:12]} 32. Qd2 {[%emt 0:02:24]} Ne4 {[%emt 0:00:37]} 33. Qd3 {[%emt 0:01:15]} Nc5 {[%emt 0:00:29]} 34. Qd4 {[%emt 0:00:20]} b6 {[%emt 0:00:22]} 35. f5 {[%emt 0:00:57]} Qd6 {[%emt 0:00:46]} 36. Qg4 {[%emt 0:02:48]} Qe5 {[%emt 0:04:52]} 37. Nxb6 {[%emt 0:01:52]} Qe2 {[%emt 0:01:14]} 38. Qd4 {[%emt 0:01:25]} Ne4 {[%emt 0:00:44]} 39. Kh2 {[%emt 0:00:22]} Nf6 {[%emt 0:00:22]} 40. Nd5 {[%emt 0:01:27]} Qxa2 {[%emt 0:00:48]} 41. Nxf6 {[%emt 0:07:07]} Re2 {[%emt 0:11:16]} 42. Ng4 {[%emt 0:01:52]} Rxg2+ {[%emt 0:00:06]} 43. Kh3 {[%emt 0:00:09]} Rd2 {[%emt 0:02:48]} 44. Qc5 {[%emt 0:04:22]} Rg8 {[%emt 0:00:30]} 45. h5 {[%emt 0:09:23]} Qxb3 {[%emt 0:04:01]} 46. h6 {[%emt 0:07:04]} Qb7 {[%emt 0:10:40]} 47. Qe5 {[%emt 0:02:49]} Qg2+ {[%emt 0:02:23]} 48. Kh4 {[%emt 0:00:02]} Re2 {[%emt 0:00:57]} 49. Qd4 {[%emt 0:02:46]} Qe4 {[%emt 0:02:05]} 50. hxg7+ {[%emt 0:01:30]} Rxg7 {[%emt 0:00:01]} 51. Qd8+ {[%emt 0:00:05]} Qe8 {[%emt 0:00:06]} 52. Qxe8+ {[%emt 0:00:41]} Rxe8 {[%emt 0:00:02]} 53. f6 {[%emt 0:00:46]} Ra7 {[%emt 0:00:05]} 54. Ne5 {[%emt 0:00:46]} a4 {[%emt 0:00:12]} 55. Nc6 {[%emt 0:00:40]} Rc7 {[%emt 0:00:49]} 56. Ne7 {[%emt 0:00:30]} a3 {[%emt 0:01:55]} 57. Kg5 {[%emt 0:00:15]} Rxc4 {[%emt 0:01:27]} 58. f7 {[%emt 0:00:33]} Rf8 {[%emt 0:00:19]} 59. Kf6 {[%emt 0:00:17]} Rg4 {[%emt 0:00:31]} 60. Nf5 {[%emt 0:00:43]} Ra4 {[%emt 0:00:45]} 61. Nh4 {[%emt 0:00:09]} Rg4 {[%emt 0:00:33]} 62. Nf5 {[%emt 0:00:03]} Rb4 {[%emt 0:00:33]} 63. Nh4 {[%emt 0:00:13]} Rb6+ {[%emt 0:00:29]} 64. Ke7 {[%emt 0:00:07]} Rbb8 {[%emt 0:00:06]} 65. Kf6 {[%emt 0:00:17]} Rb6+ {[%emt 0:00:36]} 66. Ke7 {[%emt 0:00:04]} a2 {[%emt 0:00:50]} 67. Kxf8 {[%emt 0:01:52]} Rb1 {[%emt 0:00:08]} 68. Rf2 {[%emt 0:00:04]} Rb8+ {[%emt 0:00:23]} 69. Ke7 {[%emt 0:00:10]} a1=Q {[%emt 0:00:13]} 70. f8=Q+ {[%emt 0:00:26]} Rxf8 {[%emt 0:00:05]} 71. Rxf8+ {[%emt 0:00:07]} Kg7 {[%emt 0:00:03]} 72. Rf3 {[%emt 0:01:37]} Qe5+ {[%emt 0:00:27]} 73. Kd7 {[%emt 0:00:10]} Kh6 {[%emt 0:00:19]} 74. Rf4 {[%emt 0:01:14]} Qe2 {[%emt 0:01:05]} 75. Kd6 {[%emt 0:00:09]} Kg5 {[%emt 0:00:26]} 76. Nf3+ {[%emt 0:01:02]} Kh6 {[%emt 0:00:50]} 77. Nd4 {[%emt 0:00:34]} Qe1 {[%emt 0:01:08]} 78. Kd5 {[%emt 0:00:31]} Kg6 {[%emt 0:00:22]} 79. Rg4+ {[%emt 0:00:23]} Kf7 {[%emt 0:00:12]} 80. Rf4+ {[%emt 0:00:05]} Kg8 {[%emt 0:00:25]} 81. Rg4+ {[%emt 0:00:49]} Kh8 {[%emt 0:00:07]} 82. Rf4 {[%emt 0:00:33]} h5 {[%emt 0:01:36]} 83. Nf5 {[%emt 0:00:07]} Kh7 {[%emt 0:00:23]} 84. Kd4 {[%emt 0:00:52]} Kg6 {[%emt 0:00:34]} 85. Nh4+ {[%emt 0:00:06]} Kh6 {[%emt 0:00:04]} 86. Rf6+ {[%emt 0:00:14]} Kg7 {[%emt 0:00:06]} 87. Rf3 {[%emt 0:00:16]} Qe6 {[%emt 0:00:27]} 88. Re3 {[%emt 0:01:19]} Qc6 {[%emt 0:01:22]} 89. Kd3 {[%emt 0:00:44]} Qa6+ {[%emt 0:00:20]} 90. Kd2 {[%emt 0:00:25]} Kf6 {[%emt 0:00:18]} 91. Ke1 {[%emt 0:00:29]} Kg5 {[%emt 0:00:10]} 92. Kf2 {[%emt 0:00:31]} Kg4 {[%emt 0:00:21]} 93. Nf3 {[%emt 0:01:01]} Qa2+ {[%emt 0:00:09]} 94. Re2 {[%emt 0:00:17]} Qd5 {[%emt 0:01:27]} 95. Re3 {[%emt 0:00:18]} Qc5 {[%emt 0:00:14]} 96. Ne5+ {[%emt 0:00:21]} Kg5 {[%emt 0:00:50]} 97. Nf3+ {[%emt 0:00:04]} Kf5 {[%emt 0:00:09]} 98. Ne5 {[%emt 0:01:07]} Qa7 {[%emt 0:00:55]} 99. Kf3 {[%emt 0:00:10]} Qa4 {[%emt 0:00:45]} 100. Kf2 {[%emt 0:00:32]} Qa8 {[%emt 0:00:16]} 101. Re2 {[%emt 0:00:45]} Qh1 {[%emt 0:00:44]} 102. Nf3 {[%emt 0:00:11]} Qa1 {[%emt 0:00:30]} 103. Re5+ {[%emt 0:00:39]} Kg6 {[%emt 0:00:01]} 104. Nh4+ {[%emt 0:00:14]} Kh6 {[%emt 0:00:06]} 105. Rf5 {[%emt 0:00:04]} Qd4+ {[%emt 0:00:29]} 106. Kg2 {[%emt 0:00:04]} Qe4+ {[%emt 0:00:10]} 107. Kh2 {[%emt 0:00:54]} Qc6 {[%emt 0:00:11]} 108. Kg1 {[%emt 0:02:25]} Qc2 {[%emt 0:00:09]} 109. Kh1 {[%emt 0:00:00]} Qe4+ {[%emt 0:00:38]} 110. Kh2 {[%emt 0:00:00]} Qe2+ {[%emt 0:00:03]} 1/2-1/2

[Event "FRA-ch Teams Top 16-B 2022"]
[Site "Chartres"]
[Date "2022.06.14"]
[Round "6.12"]
[White "Hutois, Mickael"]
[Black "Solodovnichenko, Yuri"]
[Result "0-1"]
[ECO "B80"]
[WhiteElo "2238"]
[BlackElo "2499"]
[Annotator "RC"]
[PlyCount "74"]
[EventDate "2022.06.09"]
[EventType "team-tourn"]
[EventCountry "FRA"]
[SourceTitle "playchess.com"]
[Source "ChessBase"]
[SourceQuality "1"]
[TimeControl "40/5400+30:1800+30"]

1. e4 {[%emt 0:00:01]} c5 {[%emt 0:01:00]} 2. Nf3 {[%emt 0:00:06]} Nc6 {[%emt 0:00:09]} 3. d4 {[%emt 0:00:09]} cxd4 {[%emt 0:00:04]} 4. Nxd4 {[%emt 0:00:11]} Nf6 {[%emt 0:00:04]} 5. Nc3 {[%emt 0:00:08]} d6 {[%emt 0:00:20]} 6. f3 {[%emt 0:08:13]} e6 {[%emt 0:02:22]} 7. Be3 {[%emt 0:02:47]} Be7 {[%emt 0:00:08]} 8. g4 {[%emt 0:01:26]} Nd7 {[%emt 0:03:22]} 9. Qd2 {[%emt 0:01:35]} O-O {[%emt 0:18:40]} 10. O-O-O {[%emt 0:11:36]} Nxd4 {[%emt 0:00:20]} 11. Bxd4 {[%emt 0:01:22]} Ne5 {[%emt 0:00:14]} 12. Be2 {[%emt 0:05:19]} a6 {[%emt 0:04:07]} 13. h4 {[%emt 0:10:23]} b5 {[%emt 0:03:06]} 14. a3 {[%emt 0:02:31]} Nc6 {[%emt 0:01:53]} 15. g5 {[%emt 0:04:12]} Rb8 {[%emt 0:02:03]} 16. Be3 {[%emt 0:04:11]} Qa5 {[%emt 0:15:21]} 17. Nb1 {[%emt 0:24:20]} Qc7 {[%emt 0:02:04]} 18. h5 {[%emt 0:02:48]} b4 {[%emt 0:02:01]} 19. a4 {[%emt 0:04:02]} Na5 {[%emt 0:01:16]} 20. Qd3 {[%emt 0:00:40]} d5 {[%emt 0:05:47]} 21. g6 {[%emt 0:01:47]} dxe4 {[%emt 0:01:58]} 22. gxh7+ {[%emt 0:00:25]} Kh8 {[%emt 0:00:27]} 23. fxe4 {[%emt 0:00:06]} Rd8 {[%emt 0:00:57]} 24. h6 {[%emt 0:00:26]} g6 {[%emt 0:00:14]} 25. Bd4+ {[%emt 0:01:16]} Kxh7 {[%emt 0:05:44]} 26. Nd2 {[%emt 0:00:47]} e5 {[%emt 0:02:58]} 27. Qf3 {[%emt 0:00:47]} Be6 {[%emt 0:00:16]} 28. Bf2 {[%emt 0:01:04]} Rbc8 {[%emt 0:03:42]} 29. Bd3 {[%emt 0:00:11]} Qc6 {[%emt 0:00:31]} 30. Rdf1 {[%emt 0:04:50]} Qxa4 {[%emt 0:01:27]} 31. Kd1 {[%emt 0:00:02]} Rxd3 {[%emt 0:01:35]} 32. Qxd3 {[%emt 0:00:50]} Bg4+ {[%emt 0:04:38]} 33. Kc1 {[%emt 0:08:29]} Be2 {[%emt 0:00:13]} 34. Bc5 {[%emt 0:00:00]} Qa1+ {[%emt 0:00:31]} 35. Nb1 {[%emt 0:00:00]} Bg5+ {[%emt 0:00:11]} 36. Be3 {[%emt 0:00:00]} Bxd3 {[%emt 0:00:09]} 37. Rxf7+ {[%emt 0:00:00]} Kh8 {[%emt 0:00:11]} 0-1

[Event "FRA-ch Teams Top 16-B 2022"]
[Site "Chartres"]
[Date "2022.06.14"]
[Round "6.13"]
[White "Nezar, Mustapha"]
[Black "De Pierrefeu, Thibaut"]
[Result "1-0"]
[ECO "E05"]
[WhiteElo "2357"]
[BlackElo "2181"]
[Annotator "RC"]
[PlyCount "105"]
[EventDate "2022.06.09"]
[EventType "team-tourn"]
[EventCountry "FRA"]
[SourceTitle "playchess.com"]
[Source "ChessBase"]
[SourceQuality "1"]
[TimeControl "40/5400+30:1800+30"]

1. d4 {[%emt 0:07:41]} Nf6 {[%emt 0:00:19]} 2. c4 {[%emt 0:00:14]} e6 {[%emt 0:00:14]} 3. Nf3 {[%emt 0:01:08]} d5 {[%emt 0:00:17]} 4. g3 {[%emt 0:00:16]} Be7 {[%emt 0:00:17]} 5. Bg2 {[%emt 0:00:33]} O-O {[%emt 0:00:10]} 6. Qc2 {[%emt 0:01:00]} a6 {[%emt 0:02:26]} 7. O-O {[%emt 0:07:07]} dxc4 {[%emt 0:00:38]} 8. a4 {[%emt 0:00:18]} Bd7 {[%emt 0:19:50]} 9. Qxc4 {[%emt 0:09:23]} Bc6 {[%emt 0:01:27]} 10. Nc3 {[%emt 0:03:34]} b5 {[%emt 0:04:20]} 11. Qd3 {[%emt 0:05:53]} b4 {[%emt 0:00:38]} 12. Nb1 {[%emt 0:00:16]} Be4 {[%emt 0:03:08]} 13. Qe3 {[%emt 0:01:18]} c5 {[%emt 0:05:10]} 14. Nbd2 {[%emt 0:08:57]} Bd5 {[%emt 0:07:41]} 15. Qd3 {[%emt 0:10:58]} cxd4 {[%emt 0:07:48]} 16. Qxd4 {[%emt 0:04:49]} Nc6 {[%emt 0:02:51]} 17. Qd3 {[%emt 0:02:59]} e5 {[%emt 0:12:30]} 18. Qb1 {[%emt 0:08:07]} Bc5 {[%emt 0:06:16]} 19. Qc2 {[%emt 0:07:00]} Qb6 {[%emt 0:07:08]} 20. Nb3 {[%emt 0:07:47]} Bxb3 {[%emt 0:05:14]} 21. Qxb3 {[%emt 0:00:09]} Na5 {[%emt 0:01:11]} 22. Qa2 {[%emt 0:04:21]} Rae8 {[%emt 0:03:02]} 23. Nd2 {[%emt 0:01:28]} b3 {[%emt 0:02:55]} 24. Qb1 {[%emt 0:00:07]} g6 {[%emt 0:00:49]} 25. Qd3 {[%emt 0:02:04]} Rd8 {[%emt 0:00:32]} 26. Qf3 {[%emt 0:00:10]} Kg7 {[%emt 0:01:03]} 27. Ne4 {[%emt 0:01:39]} Nxe4 {[%emt 0:00:19]} 28. Qxe4 {[%emt 0:00:06]} Rfe8 {[%emt 0:00:11]} 29. Qh4 {[%emt 0:01:17]} f6 {[%emt 0:02:41]} 30. Bh6+ {[%emt 0:00:43]} Kg8 {[%emt 0:00:02]} 31. Rac1 {[%emt 0:00:48]} Rd4 {[%emt 0:02:01]} 32. Qh3 {[%emt 0:00:47]} e4 {[%emt 0:01:23]} 33. Be3 {[%emt 0:01:00]} f5 {[%emt 0:00:29]} 34. g4 {[%emt 0:01:54]} f4 {[%emt 0:00:59]} 35. Bxf4 {[%emt 0:00:30]} Rxa4 {[%emt 0:00:26]} 36. g5 {[%emt 0:00:31]} Rd4 {[%emt 0:00:37]} 37. Qg3 {[%emt 0:01:10]} Bd6 {[%emt 0:00:31]} 38. e3 {[%emt 0:00:43]} Bxf4 {[%emt 0:00:27]} 39. Qxf4 {[%emt 0:00:08]} Qd6 {[%emt 0:01:21]} 40. Qg4 {[%emt 0:00:54]} Rc4 {[%emt 0:00:28]} 41. Ra1 {[%emt 0:00:44]} Nb7 {[%emt 0:02:01]} 42. Rfd1 {[%emt 0:10:34]} Qe6 {[%emt 0:01:42]} 43. Qxe6+ {[%emt 0:05:08]} Rxe6 {[%emt 0:00:01]} 44. Rd4 {[%emt 0:00:26]} Rc5 {[%emt 0:04:15]} 45. h4 {[%emt 0:02:21]} Rce5 {[%emt 0:00:30]} 46. Bf1 {[%emt 0:01:24]} Rb6 {[%emt 0:01:21]} 47. Bxa6 {[%emt 0:01:13]} Nc5 {[%emt 0:00:10]} 48. Bc4+ {[%emt 0:01:11]} Kf8 {[%emt 0:00:18]} 49. Ra7 {[%emt 0:00:46]} Rb7 {[%emt 0:03:45]} 50. Rxb7 {[%emt 0:02:27]} Nxb7 {[%emt 0:00:01]} 51. Bxb3 {[%emt 0:00:09]} Rb5 {[%emt 0:00:13]} 52. Bd5 {[%emt 0:01:08]} Nd6 {[%emt 0:03:39]} 53. Bc6 {[%emt 0:00:41]} 1-0

[Event "FRA-ch Teams Top 16-B 2022"]
[Site "Chartres"]
[Date "2022.06.14"]
[Round "6.14"]
[White "Real, Thibault"]
[Black "Philippe, Christophe"]
[Result "0-1"]
[ECO "B02"]
[WhiteElo "2262"]
[BlackElo "2379"]
[Annotator "RC"]
[PlyCount "80"]
[EventDate "2022.06.09"]
[EventType "team-tourn"]
[EventCountry "FRA"]
[SourceTitle "playchess.com"]
[Source "ChessBase"]
[SourceQuality "1"]
[TimeControl "40/5400+30:1800+30"]

1. e4 {[%emt 0:00:03]} Nf6 {[%emt 0:00:13]} 2. Nc3 {[%emt 0:00:07]} d5 {[%emt 0:03:17]} 3. e5 {[%emt 0:00:06]} d4 {[%emt 0:02:59]} 4. exf6 {[%emt 0:15:39]} dxc3 {[%emt 0:00:06]} 5. fxg7 {[%emt 0:00:19]} cxd2+ {[%emt 0:00:39]} 6. Bxd2 {[%emt 0:01:23]} Bxg7 {[%emt 0:00:12]} 7. Bb5+ {[%emt 0:26:01]} c6 {[%emt 0:08:58]} 8. Bd3 {[%emt 0:06:12]} Nd7 {[%emt 0:03:15]} 9. Qh5 {[%emt 0:03:06]} Ne5 {[%emt 0:04:13]} 10. Be2 {[%emt 0:02:15]} Qd5 {[%emt 0:10:30]} 11. Bc3 {[%emt 0:10:46]} O-O {[%emt 0:10:16]} 12. Nh3 {[%emt 0:10:27]} Bxh3 {[%emt 0:10:33]} 13. Qxh3 {[%emt 0:00:09]} Ng6 {[%emt 0:07:19]} 14. O-O {[%emt 0:03:38]} Rad8 {[%emt 0:10:06]} 15. Rad1 {[%emt 0:03:36]} Qg5 {[%emt 0:02:25]} 16. Bxg7 {[%emt 0:01:08]} Kxg7 {[%emt 0:00:40]} 17. Bd3 {[%emt 0:04:23]} f5 {[%emt 0:02:33]} 18. Rfe1 {[%emt 0:03:05]} e5 {[%emt 0:01:43]} 19. Bf1 {[%emt 0:00:15]} a6 {[%emt 0:04:58]} 20. Qc3 {[%emt 0:00:48]} Qf6 {[%emt 0:01:44]} 21. a4 {[%emt 0:00:47]} Rxd1 {[%emt 0:02:25]} 22. Rxd1 {[%emt 0:00:03]} Rd8 {[%emt 0:00:09]} 23. Ra1 {[%emt 0:02:07]} e4 {[%emt 0:01:00]} 24. Qb4 {[%emt 0:00:48]} Rd7 {[%emt 0:00:40]} 25. a5 {[%emt 0:02:36]} Qd4 {[%emt 0:02:40]} 26. Qxd4+ {[%emt 0:00:46]} Rxd4 {[%emt 0:00:02]} 27. Be2 {[%emt 0:02:47]} Rd2 {[%emt 0:00:59]} 28. Bd1 {[%emt 0:00:06]} f4 {[%emt 0:01:19]} 29. Kf1 {[%emt 0:00:32]} e3 {[%emt 0:02:45]} 30. f3 {[%emt 0:00:24]} Nh4 {[%emt 0:02:03]} 31. g3 {[%emt 0:00:30]} fxg3 {[%emt 0:00:24]} 32. hxg3 {[%emt 0:00:05]} Nf5 {[%emt 0:00:21]} 33. Ke1 {[%emt 0:00:27]} Nxg3 {[%emt 0:01:57]} 34. Ra3 {[%emt 0:00:20]} Nf5 {[%emt 0:00:35]} 35. Rb3 {[%emt 0:01:33]} Rh2 {[%emt 0:00:30]} 36. Rxb7+ {[%emt 0:00:39]} Kf6 {[%emt 0:00:06]} 37. f4 {[%emt 0:00:27]} Nd4 {[%emt 0:00:39]} 38. Be2 {[%emt 0:00:33]} Rxe2+ {[%emt 0:00:29]} 39. Kd1 {[%emt 0:00:09]} Rh2 {[%emt 0:00:42]} 40. Ke1 {[%emt 0:00:23]} Rh1# {[%emt 0:00:11]} 0-1

[Event "FRA-ch Teams Top 16-B 2022"]
[Site "Chartres"]
[Date "2022.06.14"]
[Round "6.15"]
[White "Savina, Anastasia"]
[Black "Le Pen, Steven"]
[Result "1-0"]
[ECO "D35"]
[WhiteElo "2348"]
[BlackElo "2090"]
[Annotator "RC"]
[PlyCount "61"]
[EventDate "2022.06.09"]
[EventType "team-tourn"]
[EventCountry "FRA"]
[SourceTitle "playchess.com"]
[Source "ChessBase"]
[SourceQuality "1"]
[TimeControl "40/5400+30:1800+30"]

1. d4 {[%emt 0:00:06]} d5 {[%emt 0:00:32]} 2. c4 {[%emt 0:00:46]} e6 {[%emt 0:00:16]} 3. Nc3 {[%emt 0:00:14]} Nf6 {[%emt 0:00:22]} 4. cxd5 {[%emt 0:00:56]} exd5 {[%emt 0:00:14]} 5. Bg5 {[%emt 0:00:04]} c6 {[%emt 0:01:33]} 6. e3 {[%emt 0:00:12]} Bf5 {[%emt 0:04:35]} 7. Qf3 {[%emt 0:00:51]} Bg6 {[%emt 0:06:12]} 8. Bxf6 {[%emt 0:00:14]} Qxf6 {[%emt 0:01:46]} 9. Qxf6 {[%emt 0:00:07]} gxf6 {[%emt 0:00:04]} 10. Nf3 {[%emt 0:00:36]} Nd7 {[%emt 0:06:23]} 11. Nh4 {[%emt 0:02:23]} b5 {[%emt 0:04:01]} 12. Kd2 {[%emt 0:14:59]} Bb4 {[%emt 0:09:50]} 13. a3 {[%emt 0:11:44]} Ba5 {[%emt 0:03:14]} 14. Bd3 {[%emt 0:10:30]} Rg8 {[%emt 0:08:39]} 15. Rhc1 {[%emt 0:06:12]} b4 {[%emt 0:16:44]} 16. axb4 {[%emt 0:13:19]} Bxb4 {[%emt 0:00:06]} 17. Ke2 {[%emt 0:01:05]} Ke7 {[%emt 0:11:08]} 18. Na2 {[%emt 0:04:19]} Rgb8 {[%emt 0:08:51]} 19. Rxc6 {[%emt 0:02:03]} Bd6 {[%emt 0:04:02]} 20. Rc2 {[%emt 0:01:09]} Nb6 {[%emt 0:05:15]} 21. Nc3 {[%emt 0:03:36]} Ke6 {[%emt 0:00:20]} 22. Nxg6 {[%emt 0:07:56]} fxg6 {[%emt 0:00:31]} 23. Ra6 {[%emt 0:00:18]} f5 {[%emt 0:05:17]} 24. Nb5 {[%emt 0:03:10]} Rb7 {[%emt 0:01:19]} 25. Rc6 {[%emt 0:01:13]} Rd7 {[%emt 0:00:08]} 26. Rxd6+ {[%emt 0:04:46]} Rxd6 {[%emt 0:00:10]} 27. Nc7+ {[%emt 0:00:07]} Kd7 {[%emt 0:00:35]} 28. Nxa8 {[%emt 0:00:11]} Nxa8 {[%emt 0:00:09]} 29. Bb5+ {[%emt 0:01:14]} Kc7 {[%emt 0:00:30]} 30. Rxa7+ {[%emt 0:00:15]} Kb6 {[%emt 0:00:12]} 31. Ra6+ {[%emt 0:00:30]} 1-0

[Event "FRA-ch Teams Top 16-B 2022"]
[Site "Chartres"]
[Date "2022.06.14"]
[Round "6.16"]
[White "Ruhlmann, Helene"]
[Black "Pourquet, Matthieu"]
[Result "1-0"]
[ECO "A30"]
[WhiteElo "1779"]
[BlackElo "2178"]
[Annotator "NA RC"]
[PlyCount "67"]
[EventDate "2022.06.09"]
[EventType "team-tourn"]
[EventCountry "FRA"]
[SourceTitle "playchess.com"]
[Source "ChessBase"]
[SourceQuality "1"]
[TimeControl "40/5400+30:1800+30"]

1. c4 {[%emt 0:00:04]} e6 {[%emt 0:00:40]} 2. Nf3 {[%emt 0:00:13]} c5 {[%emt 0:01:45]} 3. Nc3 {[%emt 0:01:45]} Nf6 {[%emt 0:01:21]} 4. g3 {[%emt 0:02:36]} b6 {[%emt 0:01:25]} 5. Bg2 {[%emt 0:00:29]} Bb7 {[%emt 0:00:06]} 6. O-O {[%emt 0:00:26]} Be7 {[%emt 0:00:04]} 7. d4 {[%emt 0:02:02]} cxd4 {[%emt 0:00:13]} 8. Qxd4 {[%emt 0:00:18]} d6 {[%emt 0:01:20]} 9. Rd1 {[%emt 0:02:58]} a6 {[%emt 0:00:19]} 10. Bg5 {[%emt 0:02:53]} Nbd7 {[%emt 0:00:33]} 11. e4 {[%emt 0:09:22]} Qc7 {[%emt 0:02:53]} 12. Rac1 {[%emt 0:03:04]} O-O {[%emt 0:00:42]} 13. h3 {[%emt 0:04:26]} Rad8 {[%emt 0:01:29]} 14. b4 {[%emt 0:04:06]} Rfe8 {[%emt 0:05:14]} 15. a3 {[%emt 0:04:15]} Qb8 {[%emt 0:03:55]} 16. Be3 {[%emt 0:08:42]} Bf8 {[%emt 0:08:48]} 17. Nd2 {[%emt 0:05:38]} Qa8 {[%emt 0:16:31]} 18. g4 {[%emt 0:07:25]} Rb8 {[%emt 0:16:57]} 19. Nf1 {[%emt 0:05:07]} Ne5 {[%emt 0:01:56]} 20. f4 {[%emt 0:01:02]} Ng6 {[%emt 0:00:54]} 21. Qd3 {[%emt 0:00:33]} Nd7 {[%emt 0:05:38]} 22. Ng3 {[%emt 0:05:59]} Nh4 {[%emt 0:02:24]} 23. Bh1 {[%emt 0:00:20]} f5 {[%emt 0:02:31]} 24. gxf5 {[%emt 0:00:31]} exf5 {[%emt 0:00:05]} 25. Nd5 {[%emt 0:00:10]} Bxd5 {[%emt 0:02:48]} 26. exd5 {[%emt 0:01:40]} Re7 {[%emt 0:05:03]} 27. Bf2 {[%emt 0:00:42]} Rbe8 {[%emt 0:03:56]} 28. c5 {[%emt 0:03:19]} bxc5 {[%emt 0:02:01]} 29. bxc5 {[%emt 0:00:05]} dxc5 {[%emt 0:00:26]} 30. d6 {[%emt 0:01:07]} Re4 {[%emt 0:00:24]} 31. Nxe4 {[%emt 0:01:43]} fxe4 {[%emt 0:02:33]} 32. Qc4+ {[%emt 0:00:23]} Kh8 {[%emt 0:00:08]} 33. Bxh4 {[%emt 0:00:16]} Qc8 {[%emt 0:01:52]} 34. Bg2 {[%emt 0:04:01]} 1-0

[Event "FRA-ch Teams Top 16-B 2022"]
[Site "Chartres"]
[Date "2022.06.14"]
[Round "6.17"]
[White "Fantinel, Thibault"]
[Black "Vernay, Clovis"]
[Result "1/2-1/2"]
[ECO "C01"]
[WhiteElo "2388"]
[BlackElo "2523"]
[Annotator "RC"]
[PlyCount "65"]
[EventDate "2022.06.09"]
[EventType "team-tourn"]
[EventCountry "FRA"]
[SourceTitle "playchess.com"]
[Source "ChessBase"]
[SourceQuality "1"]
[TimeControl "40/5400+30:1800+30"]

1. e4 {[%emt 0:02:19]} e6 {[%emt 0:00:28]} 2. d4 {[%emt 0:00:05]} d5 {[%emt 0:00:06]} 3. exd5 {[%emt 0:00:04]} exd5 {[%emt 0:00:14]} 4. Nf3 {[%emt 0:00:05]} Bd6 {[%emt 0:04:38]} 5. c4 {[%emt 0:00:42]} Nf6 {[%emt 0:03:18]} 6. Nc3 {[%emt 0:00:23]} h6 {[%emt 0:09:51]} 7. c5 {[%emt 0:05:10]} Be7 {[%emt 0:00:48]} 8. Bd3 {[%emt 0:01:49]} b6 {[%emt 0:00:42]} 9. cxb6 {[%emt 0:02:53]} axb6 {[%emt 0:00:12]} 10. O-O {[%emt 0:00:18]} O-O {[%emt 0:00:36]} 11. h3 {[%emt 0:05:12]} c6 {[%emt 0:10:18]} 12. Bf4 {[%emt 0:04:37]} Nbd7 {[%emt 0:02:14]} 13. Re1 {[%emt 0:05:16]} Re8 {[%emt 0:00:08]} 14. Qd2 {[%emt 0:10:19]} Bf8 {[%emt 0:01:10]} 15. Rxe8 {[%emt 0:08:02]} Nxe8 {[%emt 0:00:12]} 16. Re1 {[%emt 0:00:41]} b5 {[%emt 0:02:50]} 17. Bb1 {[%emt 0:03:50]} Nd6 {[%emt 0:02:57]} 18. Ne2 {[%emt 0:14:34]} Ne4 {[%emt 0:15:05]} 19. Qc2 {[%emt 0:03:11]} Ra6 {[%emt 0:09:12]} 20. Ng3 {[%emt 0:01:12]} Ndf6 {[%emt 0:00:30]} 21. Ne5 {[%emt 0:01:39]} Qb6 {[%emt 0:02:29]} 22. Rd1 {[%emt 0:04:47]} Be6 {[%emt 0:01:38]} 23. f3 {[%emt 0:02:43]} Nxg3 {[%emt 0:08:21]} 24. Bxg3 {[%emt 0:00:03]} g6 {[%emt 0:01:43]} 25. Qd2 {[%emt 0:01:26]} Nd7 {[%emt 0:05:28]} 26. Rc1 {[%emt 0:07:26]} Nxe5 {[%emt 0:03:28]} 27. Bxe5 {[%emt 0:00:04]} c5 {[%emt 0:00:08]} 28. Qf4 {[%emt 0:02:33]} Bd7 {[%emt 0:00:05]} 29. Bc7 {[%emt 0:03:58]} Qa7 {[%emt 0:00:24]} 30. Bb8 {[%emt 0:01:04]} Qb6 {[%emt 0:00:05]} 31. Bc7 {[%emt 0:01:24]} Qa7 {[%emt 0:01:00]} 32. Bb8 {[%emt 0:00:28]} Qb6 {[%emt 0:00:49]} 33. Bc7 {[%emt 0:01:34]} 1/2-1/2